[Event "RUS-ch Rapid Men 2018"]
[Site "Sochi"]
[Date "2018.10.06"]
[Round "9"]
[White "Panarin, Mikhail"]
[Black "Tsoi, Dmitry"]
[Result "1/2-1/2"]
[ECO "C41"]
[WhiteElo "2562"]
[BlackElo "2429"]
[Annotator "ChessBase"]
[PlyCount "83"]
[EventDate "2018.10.05"]
[EventType "swiss"]
[EventCountry "RUS"]
[SourceTitle "playchess.com"]
[Source "ChessBase"]
[SourceQuality "1"]
[TimeControl "900+10"]

1. e4 {[%emt 0:00:00]} e5 {[%emt 0:00:00]} 2. Nf3 {[%emt 0:00:00]} d6 {[%emt 0:00:00]} 3. d4 {[%emt 0:00:00]} exd4 {[%emt 0:00:00]} 4. Nxd4 {[%emt 0:00:02]} Nf6 {[%emt 0:00:00]} 5. Nc3 {[%emt 0:00:01]} Be7 {[%emt 0:00:00]} 6. Nde2 {[%emt 0:00:10]} O-O {[%emt 0:00:10]} 7. g3 {[%emt 0:00:04]} c6 {[%emt 0:00:39]} 8. Bg2 {[%emt 0:00:28]} b5 {[%emt 0:00:02]} 9. Nxb5 {[%emt 0:01:00]} Bb7 {[%emt 0:02:45]} 10. Nbc3 {[%emt 0:00:04]} Nbd7 {[%emt 0:00:04]} 11. O-O {[%emt 0:00:08]} a5 {[%emt 0:00:04]} 12. Nd4 {[%emt 0:00:14]} Nc5 {[%emt 0:00:17]} 13. Nf5 {[%emt 0:01:05]} Re8 {[%emt 0:00:55]} 14. Bf4 {[%emt 0:00:20]} d5 {[%emt 0:00:40]} 15. exd5 {[%emt 0:02:24]} Nxd5 {[%emt 0:00:11]} 16. Nxd5 {[%emt 0:00:50]} cxd5 {[%emt 0:00:02]} 17. Nxe7+ {[%emt 0:03:36]} Qxe7 {[%emt 0:00:09]} 18. Re1 {[%emt 0:00:43]} Qf6 {[%emt 0:00:37]} 19. Rxe8+ {[%emt 0:01:08]} Rxe8 {[%emt 0:00:01]} 20. c3 {[%emt 0:00:00]} Ne4 {[%emt 0:00:37]} 21. Be3 {[%emt 0:00:05]} h6 {[%emt 0:00:07]} 22. Qd4 {[%emt 0:00:10]} Qxd4 {[%emt 0:00:56]} 23. Bxd4 {[%emt 0:00:03]} a4 {[%emt 0:00:03]} 24. Re1 {[%emt 0:00:17]} Rc8 {[%emt 0:00:18]} 25. f3 {[%emt 0:00:28]} Nd2 {[%emt 0:00:54]} 26. Re7 {[%emt 0:00:02]} Bc6 {[%emt 0:00:09]} 27. Re2 {[%emt 0:00:45]} Nc4 {[%emt 0:00:04]} 28. b3 {[%emt 0:00:04]} axb3 {[%emt 0:00:24]} 29. axb3 {[%emt 0:00:01]} Na5 {[%emt 0:00:02]} 30. Bh3 {[%emt 0:00:52]} Ra8 {[%emt 0:00:24]} 31. b4 {[%emt 0:00:01]} Nc4 {[%emt 0:00:02]} 32. Bf1 {[%emt 0:01:21]} Bb5 {[%emt 0:00:21]} 33. Rf2 {[%emt 0:01:01]} Nd6 {[%emt 0:00:32]} 34. Bc5 {[%emt 0:00:09]} Bxf1 {[%emt 0:00:02]} 35. Kxf1 {[%emt 0:01:28]} Nb5 {[%emt 0:00:08]} 36. Bd4 {[%emt 0:00:43]} Ra1+ {[%emt 0:00:45]} 37. Ke2 {[%emt 0:00:01]} Nxd4+ {[%emt 0:00:39]} 38. cxd4 {[%emt 0:00:02]} Rb1 {[%emt 0:00:02]} 39. Ke3 {[%emt 0:00:01]} Rb3+ {[%emt 0:02:42]} 40. Kf4 {[%emt 0:00:02]} f6 {[%emt 0:00:01]} 41. Ra2 {[%emt 0:00:48]} Rxb4 {[%emt 0:00:37]} 42. Ke3 {[%emt 0:00:42]} 1/2-1/2

[Event "RUS-ch Rapid Men 2018"]
[Site "Sochi"]
[Date "2018.10.06"]
[Round "9"]
[White "Shcherbakov, Ruslan"]
[Black "Sergeyev, Alexander"]
[Result "1/2-1/2"]
[ECO "C42"]
[WhiteElo "2516"]
[BlackElo "2397"]
[Annotator "ChessBase"]
[PlyCount "44"]
[EventDate "2018.10.05"]
[EventType "swiss"]
[EventCountry "RUS"]
[SourceTitle "playchess.com"]
[Source "ChessBase"]
[SourceQuality "1"]
[TimeControl "900+10"]

1. e4 {[%emt 0:00:28]} e5 {[%emt 0:00:00]} 2. Nf3 {[%emt 0:00:02]} Nf6 {[%emt 0:00:00]} 3. Nxe5 {[%emt 0:00:06]} d6 {[%emt 0:00:00]} 4. Nf3 {[%emt 0:00:03]} Nxe4 {[%emt 0:00:00]} 5. d4 {[%emt 0:00:03]} d5 {[%emt 0:00:04]} 6. Bd3 {[%emt 0:00:05]} Nc6 {[%emt 0:00:01]} 7. O-O {[%emt 0:00:09]} Be7 {[%emt 0:00:03]} 8. Re1 {[%emt 0:00:28]} Bf5 {[%emt 0:00:10]} 9. Nbd2 {[%emt 0:00:10]} Nxd2 {[%emt 0:00:06]} 10. Qxd2 {[%emt 0:00:04]} Bg6 {[%emt 0:01:24]} 11. Ne5 {[%emt 0:03:52]} Nxe5 {[%emt 0:00:18]} 12. Rxe5 {[%emt 0:00:03]} O-O {[%emt 0:00:03]} 13. Bxg6 {[%emt 0:01:25]} hxg6 {[%emt 0:00:04]} 14. Qd3 {[%emt 0:00:17]} Bd6 {[%emt 0:00:28]} 15. Re3 {[%emt 0:00:26]} Qd7 {[%emt 0:04:56]} 16. Bd2 {[%emt 0:00:05]} Rfe8 {[%emt 0:00:13]} 17. Rae1 {[%emt 0:00:09]} Rxe3 {[%emt 0:00:24]} 18. Qxe3 {[%emt 0:03:54]} a6 {[%emt 0:02:35]} 19. b3 {[%emt 0:00:24]} Kf8 {[%emt 0:00:11]} 20. Qf3 {[%emt 0:00:21]} Re8 {[%emt 0:00:24]} 21. Rxe8+ {[%emt 0:00:09]} Kxe8 {[%emt 0:00:03]} 22. g4 {[%emt 0:00:26]} Qe6 1/2-1/2

[Event "RUS-ch Rapid Men 2018"]
[Site "Sochi"]
[Date "2018.10.06"]
[Round "9"]
[White "Potapov, Pavel"]
[Black "Tsvetkov, Andrey"]
[Result "1-0"]
[ECO "B22"]
[WhiteElo "2515"]
[BlackElo "2264"]
[Annotator "ChessBase"]
[PlyCount "87"]
[EventDate "2018.10.05"]
[EventType "swiss"]
[EventCountry "RUS"]
[SourceTitle "playchess.com"]
[Source "ChessBase"]
[SourceQuality "1"]
[TimeControl "900+10"]

1. e4 {[%emt 0:00:00]} c5 {[%emt 0:00:00]} 2. c3 {[%emt 0:00:00]} d5 {[%emt 0:00:00]} 3. exd5 {[%emt 0:00:00]} Qxd5 {[%emt 0:00:00]} 4. d4 {[%emt 0:00:00]} Nf6 {[%emt 0:00:00]} 5. Nf3 {[%emt 0:00:00]} Bg4 {[%emt 0:00:00]} 6. Be2 {[%emt 0:00:00]} e6 {[%emt 0:00:00]} 7. h3 {[%emt 0:00:00]} Bh5 {[%emt 0:00:00]} 8. O-O {[%emt 0:00:04]} Nc6 {[%emt 0:00:00]} 9. Be3 {[%emt 0:00:02]} cxd4 {[%emt 0:00:00]} 10. cxd4 {[%emt 0:00:01]} Be7 {[%emt 0:00:01]} 11. Nc3 {[%emt 0:00:02]} Qd6 {[%emt 0:00:01]} 12. Qb3 {[%emt 0:00:02]} O-O {[%emt 0:00:03]} 13. Rfd1 {[%emt 0:00:02]} Qb4 {[%emt 0:00:06]} 14. Qxb4 {[%emt 0:00:28]} Nxb4 {[%emt 0:00:02]} 15. g4 {[%emt 0:00:05]} Bg6 {[%emt 0:00:04]} 16. Ne5 {[%emt 0:00:05]} Nc2 {[%emt 0:01:02]} 17. Rac1 {[%emt 0:00:05]} Nxe3 {[%emt 0:00:05]} 18. fxe3 {[%emt 0:00:02]} Rac8 {[%emt 0:00:01]} 19. Bf3 {[%emt 0:00:16]} Rfd8 {[%emt 0:02:50]} 20. h4 {[%emt 0:02:44]} h6 {[%emt 0:00:49]} 21. Nxg6 {[%emt 0:01:56]} fxg6 {[%emt 0:00:02]} 22. Kg2 {[%emt 0:00:02]} Rd7 {[%emt 0:05:28]} 23. Nd5 {[%emt 0:00:50]} Rxc1 {[%emt 0:00:25]} 24. Nxe7+ {[%emt 0:00:01]} Rxe7 {[%emt 0:00:01]} 25. Rxc1 {[%emt 0:00:01]} e5 {[%emt 0:00:22]} 26. Rc8+ {[%emt 0:00:23]} Kh7 {[%emt 0:00:18]} 27. g5 {[%emt 0:01:42]} hxg5 {[%emt 0:01:32]} 28. hxg5 {[%emt 0:00:02]} Ne8 {[%emt 0:00:05]} 29. Bd5 {[%emt 0:01:59]} exd4 {[%emt 0:01:53]} 30. Rc1 {[%emt 0:00:17]} Nf6 {[%emt 0:00:49]} 31. gxf6 {[%emt 0:00:04]} gxf6 {[%emt 0:00:01]} 32. e4 {[%emt 0:00:27]} f5 {[%emt 0:00:17]} 33. Kf3 {[%emt 0:00:02]} Kg7 {[%emt 0:00:22]} 34. Rd1 {[%emt 0:01:19]} fxe4+ {[%emt 0:00:06]} 35. Bxe4 {[%emt 0:00:02]} Rf7+ {[%emt 0:00:01]} 36. Ke2 {[%emt 0:00:06]} Kf6 {[%emt 0:00:25]} 37. Rxd4 {[%emt 0:00:09]} Ke5 {[%emt 0:00:01]} 38. Ke3 {[%emt 0:00:06]} Rh7 {[%emt 0:00:02]} 39. Rd5+ {[%emt 0:00:06]} Ke6 {[%emt 0:00:01]} 40. Rg5 {[%emt 0:00:02]} Rh3+ {[%emt 0:00:03]} 41. Kd4 {[%emt 0:00:03]} Rh2 {[%emt 0:00:05]} 42. Rxg6+ {[%emt 0:00:02]} Kf7 {[%emt 0:00:01]} 43. Rg2 {[%emt 0:00:02]} Rh4 {[%emt 0:00:04]} 44. Rc2 {[%emt 0:00:13]} 1-0

[Event "RUS-ch Rapid Men 2018"]
[Site "Sochi"]
[Date "2018.10.06"]
[Round "9"]
[White "Demidov, Mikhail"]
[Black "Chigaev, Maksim"]
[Result "1/2-1/2"]
[ECO "A40"]
[WhiteElo "2514"]
[BlackElo "2599"]
[Annotator "ChessBase"]
[PlyCount "130"]
[EventDate "2018.10.05"]
[EventType "swiss"]
[EventCountry "RUS"]
[SourceTitle "playchess.com"]
[Source "ChessBase"]
[SourceQuality "1"]
[TimeControl "900+10"]

1. d4 {[%emt 0:00:00]} g6 {[%emt 0:00:00]} 2. g3 {[%emt 0:00:02]} Bg7 {[%emt 0:00:00]} 3. Bg2 {[%emt 0:00:01]} d6 {[%emt 0:00:02]} 4. Nf3 {[%emt 0:00:06]} Nf6 {[%emt 0:00:01]} 5. b3 {[%emt 0:00:01]} O-O {[%emt 0:01:04]} 6. Bb2 {[%emt 0:00:07]} e5 {[%emt 0:00:20]} 7. dxe5 {[%emt 0:00:03]} Nfd7 {[%emt 0:00:01]} 8. O-O {[%emt 0:01:53]} dxe5 {[%emt 0:00:10]} 9. Nfd2 {[%emt 0:00:12]} Na6 {[%emt 0:00:27]} 10. Nc4 {[%emt 0:00:20]} Re8 {[%emt 0:00:27]} 11. Qd2 {[%emt 0:00:21]} e4 {[%emt 0:07:39]} 12. Bxg7 {[%emt 0:00:32]} Kxg7 {[%emt 0:00:02]} 13. Nc3 {[%emt 0:00:11]} f5 {[%emt 0:00:00]} 14. Rad1 {[%emt 0:00:42]} Rb8 {[%emt 0:01:32]} 15. Nb5 {[%emt 0:00:26]} Qf6 {[%emt 0:00:29]} 16. Nxa7 {[%emt 0:00:26]} Ndc5 {[%emt 0:00:01]} 17. Nxc8 {[%emt 0:00:48]} Rbxc8 {[%emt 0:00:02]} 18. a3 {[%emt 0:00:07]} Rcd8 {[%emt 0:00:17]} 19. Qc1 {[%emt 0:00:02]} Ne6 {[%emt 0:00:47]} 20. Rxd8 {[%emt 0:02:48]} Rxd8 {[%emt 0:00:00]} 21. Rd1 {[%emt 0:00:01]} Nd4 {[%emt 0:01:56]} 22. Kf1 {[%emt 0:03:00]} Nc5 {[%emt 0:00:39]} 23. Qa1 {[%emt 0:03:11]} Nce6 {[%emt 0:00:50]} 24. e3 {[%emt 0:02:26]} b5 {[%emt 0:01:05]} 25. Na5 {[%emt 0:00:59]} Nxc2 {[%emt 0:00:13]} 26. Qxf6+ {[%emt 0:00:02]} Kxf6 {[%emt 0:00:01]} 27. Rxd8 {[%emt 0:00:01]} Nxd8 {[%emt 0:00:01]} 28. a4 {[%emt 0:00:00]} c6 {[%emt 0:00:52]} 29. Ke2 {[%emt 0:00:20]} Nb4 {[%emt 0:00:27]} 30. Kd2 {[%emt 0:00:28]} Nd5 {[%emt 0:00:06]} 31. Bf1 {[%emt 0:00:11]} bxa4 {[%emt 0:00:05]} 32. bxa4 {[%emt 0:00:01]} Nb6 {[%emt 0:00:01]} 33. Be2 {[%emt 0:00:24]} Nxa4 {[%emt 0:00:12]} 34. Nxc6 Nxc6 {[%emt 0:00:00]} 35. Bb5 {[%emt 0:00:08]} Ne5 {[%emt 0:00:01]} 36. Bxa4 {[%emt 0:00:02]} Nf3+ {[%emt 0:00:06]} 37. Ke2 {[%emt 0:00:08]} Nxh2 {[%emt 0:00:01]} 38. Bb5 {[%emt 0:00:11]} h5 {[%emt 0:00:23]} 39. Be8 {[%emt 0:00:02]} Kg7 {[%emt 0:00:34]} 40. Ke1 {[%emt 0:00:04]} Kh7 {[%emt 0:00:15]} 41. Ke2 {[%emt 0:00:03]} Kh6 {[%emt 0:00:01]} 42. Bd7 {[%emt 0:00:06]} Kg5 {[%emt 0:00:24]} 43. Be8 {[%emt 0:00:01]} Nf3 {[%emt 0:00:12]} 44. Kf1 {[%emt 0:00:05]} Ne5 {[%emt 0:00:02]} 45. Kg2 {[%emt 0:00:07]} Kg4 {[%emt 0:00:02]} 46. Bb5 {[%emt 0:00:13]} Kg5 {[%emt 0:00:35]} 47. Be8 {[%emt 0:00:11]} Kg4 {[%emt 0:00:09]} 48. Ba4 {[%emt 0:00:01]} g5 {[%emt 0:00:11]} 49. Bd1+ {[%emt 0:00:30]} Nf3 {[%emt 0:00:01]} 50. Be2 {[%emt 0:00:10]} h4 {[%emt 0:00:20]} 51. gxh4 {[%emt 0:00:20]} gxh4 {[%emt 0:00:02]} 52. Bxf3+ {[%emt 0:00:46]} exf3+ {[%emt 0:00:01]} 53. Kh2 {[%emt 0:00:01]} Kh5 {[%emt 0:00:16]} 54. Kh3 {[%emt 0:00:02]} Kg5 {[%emt 0:00:00]} 55. Kh2 {[%emt 0:00:01]} Kf6 {[%emt 0:00:25]} 56. Kh3 {[%emt 0:00:01]} Kg5 {[%emt 0:00:01]} 57. Kh2 {[%emt 0:00:01]} Kg4 {[%emt 0:00:12]} 58. Kg1 {[%emt 0:00:04]} Kh3 {[%emt 0:00:15]} 59. Kh1 {[%emt 0:00:01]} Kg4 {[%emt 0:00:06]} 60. Kh2 {[%emt 0:00:01]} h3 {[%emt 0:00:14]} 61. Kg1 {[%emt 0:00:04]} Kg5 {[%emt 0:00:07]} 62. Kh2 {[%emt 0:00:02]} Kh4 {[%emt 0:00:01]} 63. Kg1 {[%emt 0:00:01]} Kh5 {[%emt 0:00:02]} 64. Kh2 {[%emt 0:00:01]} Kg4 {[%emt 0:00:00]} 65. Kg1 {[%emt 0:00:01]} Kg5 {[%emt 0:00:06]} 1/2-1/2

[Event "RUS-ch Rapid Men 2018"]
[Site "Sochi"]
[Date "2018.10.06"]
[Round "9"]
[White "Khanin, Semen"]
[Black "Sakaev, Konstantin"]
[Result "1/2-1/2"]
[ECO "B90"]
[WhiteElo "2510"]
[BlackElo "2584"]
[Annotator "ChessBase"]
[PlyCount "59"]
[EventDate "2018.10.05"]
[EventType "swiss"]
[EventCountry "RUS"]
[SourceTitle "playchess.com"]
[Source "ChessBase"]
[SourceQuality "1"]
[TimeControl "900+10"]

1. e4 {[%emt 0:00:00]} c5 {[%emt 0:00:00]} 2. Nf3 {[%emt 0:00:00]} d6 {[%emt 0:00:00]} 3. d4 {[%emt 0:00:00]} cxd4 {[%emt 0:00:00]} 4. Nxd4 {[%emt 0:00:00]} Nf6 {[%emt 0:00:00]} 5. Nc3 {[%emt 0:00:00]} a6 {[%emt 0:00:00]} 6. f3 {[%emt 0:00:01]} e5 {[%emt 0:00:00]} 7. Nb3 {[%emt 0:00:02]} Be6 {[%emt 0:00:02]} 8. Be3 {[%emt 0:00:01]} Be7 {[%emt 0:00:03]} 9. Qd2 {[%emt 0:00:02]} O-O {[%emt 0:00:03]} 10. O-O-O {[%emt 0:00:14]} Nbd7 {[%emt 0:00:01]} 11. g4 {[%emt 0:00:02]} b5 {[%emt 0:00:01]} 12. g5 {[%emt 0:00:01]} Nh5 {[%emt 0:00:02]} 13. Nd5 {[%emt 0:00:03]} Bxd5 {[%emt 0:00:01]} 14. exd5 {[%emt 0:00:02]} f6 {[%emt 0:00:02]} 15. h4 {[%emt 0:00:04]} fxg5 {[%emt 0:00:14]} 16. hxg5 {[%emt 0:00:02]} Rxf3 {[%emt 0:00:03]} 17. Bd3 {[%emt 0:00:03]} g6 {[%emt 0:00:20]} 18. Rdg1 {[%emt 0:01:45]} Qf8 {[%emt 0:03:31]} 19. Be2 {[%emt 0:05:23]} Rxe3 {[%emt 0:02:41]} 20. Qxe3 {[%emt 0:00:11]} Qf4 {[%emt 0:00:01]} 21. Kd2 {[%emt 0:00:19]} Qxe3+ {[%emt 0:00:32]} 22. Kxe3 {[%emt 0:00:01]} Nf4 {[%emt 0:00:02]} 23. Bg4 {[%emt 0:02:42]} Nb6 {[%emt 0:00:22]} 24. Be6+ {[%emt 0:00:02]} Kg7 {[%emt 0:00:02]} 25. Ke4 {[%emt 0:00:51]} Nc4 {[%emt 0:02:18]} 26. Nd4 {[%emt 0:01:21]} Nd2+ {[%emt 0:02:44]} 27. Ke3 {[%emt 0:00:01]} Nc4+ {[%emt 0:00:03]} 28. Ke4 {[%emt 0:00:02]} Nd2+ {[%emt 0:02:45]} 29. Ke3 {[%emt 0:00:02]} Nc4+ {[%emt 0:00:01]} 30. Ke4 {[%emt 0:00:03]} 1/2-1/2

[Event "RUS-ch Rapid Men 2018"]
[Site "Sochi"]
[Date "2018.10.06"]
[Round "9"]
[White "Gutenev, Alexander"]
[Black "Dilmukhametov, Artur"]
[Result "1-0"]
[ECO "C18"]
[WhiteElo "2456"]
[BlackElo "2353"]
[Annotator "ChessBase"]
[PlyCount "81"]
[EventDate "2018.10.05"]
[EventType "swiss"]
[EventCountry "RUS"]
[SourceTitle "playchess.com"]
[Source "ChessBase"]
[SourceQuality "1"]
[TimeControl "900+10"]

1. e4 {[%emt 0:00:53]} e6 {[%emt 0:00:00]} 2. d4 {[%emt 0:00:00]} d5 3. Nc3 Bb4 {[%emt 0:00:04]} 4. e5 {[%emt 0:00:02]} c5 {[%emt 0:00:05]} 5. a3 {[%emt 0:00:00]} Bxc3+ {[%emt 0:00:04]} 6. bxc3 {[%emt 0:00:01]} Qa5 {[%emt 0:00:52]} 7. Bd2 {[%emt 0:00:05]} Qa4 {[%emt 0:00:01]} 8. Qg4 {[%emt 0:00:03]} g6 {[%emt 0:00:03]} 9. Nf3 {[%emt 0:00:08]} Qxc2 {[%emt 0:00:57]} 10. Be2 {[%emt 0:00:07]} h5 {[%emt 0:00:12]} 11. Qf4 {[%emt 0:00:06]} Nd7 {[%emt 0:04:21]} 12. O-O {[%emt 0:00:41]} Nh6 {[%emt 0:00:16]} 13. Rfc1 {[%emt 0:00:04]} Qf5 {[%emt 0:00:53]} 14. Qg3 {[%emt 0:01:38]} Qg4 {[%emt 0:00:03]} 15. Bb5 {[%emt 0:00:09]} Nf5 {[%emt 0:00:46]} 16. Qf4 {[%emt 0:00:13]} Qxf4 {[%emt 0:00:33]} 17. Bxf4 {[%emt 0:00:01]} c4 {[%emt 0:02:57]} 18. Ba4 {[%emt 0:00:02]} O-O {[%emt 0:00:44]} 19. Rcb1 {[%emt 0:00:09]} Nb8 {[%emt 0:01:05]} 20. Bg5 {[%emt 0:00:15]} b6 {[%emt 0:00:21]} 21. h3 {[%emt 0:00:02]} Bd7 {[%emt 0:00:37]} 22. Bc2 {[%emt 0:00:16]} b5 {[%emt 0:00:47]} 23. g4 {[%emt 0:00:03]} Ng7 {[%emt 0:00:01]} 24. a4 {[%emt 0:01:47]} bxa4 {[%emt 0:00:33]} 25. Be7 {[%emt 0:00:38]} Re8 {[%emt 0:00:11]} 26. Bd6 {[%emt 0:00:02]} Bc6 {[%emt 0:00:59]} 27. Bxa4 {[%emt 0:00:33]} Bxa4 {[%emt 0:00:03]} 28. Rxa4 {[%emt 0:00:01]} Nc6 {[%emt 0:00:48]} 29. Ra6 {[%emt 0:00:12]} Nb8 {[%emt 0:00:25]} 30. Ra4 {[%emt 0:00:37]} Nc6 {[%emt 0:00:05]} 31. Ng5 {[%emt 0:00:14]} Rec8 {[%emt 0:00:26]} 32. Rb7 {[%emt 0:00:11]} Nd8 {[%emt 0:00:30]} 33. Rbxa7 {[%emt 0:01:18]} Rxa7 {[%emt 0:00:01]} 34. Rxa7 {[%emt 0:00:01]} Ne8 {[%emt 0:00:02]} 35. gxh5 {[%emt 0:00:27]} Nxd6 {[%emt 0:00:51]} 36. exd6 {[%emt 0:00:15]} gxh5 {[%emt 0:00:01]} 37. Re7 {[%emt 0:01:29]} Kf8 {[%emt 0:00:22]} 38. d7 {[%emt 0:00:09]} Rb8 {[%emt 0:00:05]} 39. Re8+ {[%emt 0:00:02]} Kg7 {[%emt 0:00:01]} 40. Kg2 {[%emt 0:00:13]} Kf6 {[%emt 0:00:17]} 41. Nf3 {[%emt 0:00:02]} 1-0

[Event "RUS-ch Rapid Men 2018"]
[Site "Sochi"]
[Date "2018.10.06"]
[Round "9"]
[White "Usmanov, Vasily"]
[Black "Pridorozhni, Aleksei"]
[Result "1/2-1/2"]
[ECO "A41"]
[WhiteElo "2453"]
[BlackElo "2574"]
[Annotator "ChessBase"]
[PlyCount "89"]
[EventDate "2018.10.05"]
[EventType "swiss"]
[EventCountry "RUS"]
[SourceTitle "playchess.com"]
[Source "ChessBase"]
[SourceQuality "1"]
[TimeControl "900+10"]

1. d4 {[%emt 0:00:00]} d6 {[%emt 0:00:00]} 2. Nf3 {[%emt 0:00:00]} Bg4 {[%emt 0:00:00]} 3. Nbd2 {[%emt 0:00:40]} Nd7 {[%emt 0:00:00]} 4. g3 {[%emt 0:00:06]} Ngf6 {[%emt 0:00:01]} 5. Bg2 {[%emt 0:00:01]} c6 {[%emt 0:00:21]} 6. h3 {[%emt 0:00:10]} Bh5 {[%emt 0:00:02]} 7. O-O {[%emt 0:00:32]} d5 {[%emt 0:00:08]} 8. c4 {[%emt 0:00:33]} e6 {[%emt 0:00:05]} 9. b3 {[%emt 0:00:02]} Bd6 {[%emt 0:00:07]} 10. Bb2 {[%emt 0:00:01]} Qe7 {[%emt 0:00:05]} 11. Re1 {[%emt 0:00:09]} Ba3 {[%emt 0:00:06]} 12. Qc1 {[%emt 0:00:06]} Bxb2 {[%emt 0:00:03]} 13. Qxb2 {[%emt 0:00:01]} O-O {[%emt 0:00:20]} 14. e4 {[%emt 0:00:20]} dxe4 {[%emt 0:00:05]} 15. Ng5 {[%emt 0:00:20]} Bg6 {[%emt 0:00:05]} 16. Ngxe4 {[%emt 0:00:06]} Nxe4 {[%emt 0:00:03]} 17. Bxe4 {[%emt 0:00:38]} Bxe4 {[%emt 0:00:21]} 18. Rxe4 {[%emt 0:00:06]} Rfd8 {[%emt 0:00:07]} 19. Nf3 {[%emt 0:00:04]} a5 {[%emt 0:00:14]} 20. Kg2 {[%emt 0:00:51]} Qd6 {[%emt 0:00:28]} 21. Rae1 {[%emt 0:00:12]} a4 {[%emt 0:00:44]} 22. b4 {[%emt 0:02:26]} a3 {[%emt 0:00:02]} 23. Qb3 {[%emt 0:00:17]} b5 {[%emt 0:00:03]} 24. Ne5 {[%emt 0:01:54]} Nxe5 {[%emt 0:04:41]} 25. dxe5 {[%emt 0:00:14]} Qd3 {[%emt 0:00:05]} 26. Qxd3 {[%emt 0:03:32]} Rxd3 {[%emt 0:00:02]} 27. R1e2 {[%emt 0:00:02]} h6 {[%emt 0:00:46]} 28. Rc2 {[%emt 0:00:33]} g5 {[%emt 0:00:02]} 29. h4 {[%emt 0:00:12]} Rad8 {[%emt 0:01:29]} 30. cxb5 {[%emt 0:00:09]} cxb5 {[%emt 0:00:01]} 31. hxg5 {[%emt 0:00:16]} hxg5 {[%emt 0:00:01]} 32. Rg4 {[%emt 0:00:08]} Rd2 {[%emt 0:00:03]} 33. Rxg5+ {[%emt 0:00:03]} Kf8 {[%emt 0:00:01]} 34. Rc7 {[%emt 0:00:28]} Rxa2 {[%emt 0:00:16]} 35. Rg4 {[%emt 0:01:10]} Rad2 {[%emt 0:00:02]} 36. Ra7 {[%emt 0:00:19]} a2 {[%emt 0:00:05]} 37. Rf4 {[%emt 0:00:26]} R8d7 {[%emt 0:00:03]} 38. Ra8+ {[%emt 0:00:02]} Ke7 {[%emt 0:00:03]} 39. Rh4 {[%emt 0:00:28]} Re2 {[%emt 0:00:13]} 40. Rhh8 {[%emt 0:00:13]} Rxe5 {[%emt 0:00:13]} 41. Rxa2 {[%emt 0:00:04]} Re4 {[%emt 0:00:10]} 42. Rb8 {[%emt 0:00:41]} Rxb4 {[%emt 0:00:15]} 43. Ra5 {[%emt 0:00:02]} Rd5 {[%emt 0:00:33]} 44. Ra7+ {[%emt 0:00:03]} Rd7 {[%emt 0:00:04]} 45. Ra5 {[%emt 0:00:02]} 1/2-1/2

[Event "RUS-ch Rapid Men 2018"]
[Site "Sochi"]
[Date "2018.10.06"]
[Round "9"]
[White "Pogromsky, Mikhail"]
[Black "Alexeev, Alexey"]
[Result "1-0"]
[ECO "A30"]
[WhiteElo "2415"]
[BlackElo "2287"]
[Annotator "NA"]
[PlyCount "61"]
[EventDate "2018.10.05"]
[EventType "swiss"]
[EventCountry "RUS"]
[SourceTitle "playchess.com"]
[Source "ChessBase"]
[SourceQuality "1"]
[TimeControl "900+10"]

1. Nf3 {[%emt 0:00:02]} Nf6 {[%emt 0:00:00]} 2. c4 {[%emt 0:00:03]} c5 {[%emt 0:00:00]} 3. Nc3 {[%emt 0:00:11]} e6 {[%emt 0:00:00]} 4. g3 {[%emt 0:00:06]} b6 {[%emt 0:00:05]} 5. Bg2 {[%emt 0:00:03]} Bb7 {[%emt 0:00:01]} 6. O-O {[%emt 0:00:03]} Be7 {[%emt 0:00:04]} 7. d4 {[%emt 0:00:22]} cxd4 {[%emt 0:00:02]} 8. Qxd4 {[%emt 0:00:01]} O-O {[%emt 0:00:26]} 9. Rd1 {[%emt 0:00:07]} d6 {[%emt 0:01:36]} 10. Bg5 {[%emt 0:00:12]} Nc6 {[%emt 0:01:31]} 11. Qf4 {[%emt 0:00:08]} Qb8 {[%emt 0:00:40]} 12. Bxf6 {[%emt 0:03:39]} Bxf6 {[%emt 0:00:17]} 13. Qxd6 {[%emt 0:01:58]} Bxc3 {[%emt 0:00:39]} 14. bxc3 {[%emt 0:00:13]} Qxd6 {[%emt 0:02:56]} 15. Rxd6 {[%emt 0:00:02]} Rfd8 {[%emt 0:00:33]} 16. Rad1 {[%emt 0:00:07]} Rxd6 {[%emt 0:01:24]} 17. Rxd6 {[%emt 0:00:02]} Rd8 {[%emt 0:00:06]} 18. Rd3 {[%emt 0:02:56]} Kf8 {[%emt 0:05:39]} 19. Ng5 {[%emt 0:02:14]} h6 {[%emt 0:01:19]} 20. Bxc6 {[%emt 0:01:50]} Rxd3 {[%emt 0:00:05]} 21. exd3 {[%emt 0:00:01]} Bxc6 {[%emt 0:00:02]} 22. Nh3 {[%emt 0:00:03]} g5 {[%emt 0:00:08]} 23. f4 {[%emt 0:00:29]} f6 {[%emt 0:00:44]} 24. Kf2 {[%emt 0:00:06]} Ke7 {[%emt 0:00:18]} 25. Ke3 {[%emt 0:00:02]} Bg2 {[%emt 0:00:10]} 26. Nf2 {[%emt 0:00:10]} Bf1 {[%emt 0:00:03]} 27. Kd4 {[%emt 0:01:14]} gxf4 {[%emt 0:00:19]} 28. gxf4 {[%emt 0:00:01]} h5 {[%emt 0:00:17]} 29. h4 {[%emt 0:01:19]} Bg2 {[%emt 0:00:26]} 30. c5 {[%emt 0:00:39]} b5 {[%emt 0:00:10]} 31. Ne4 {[%emt 0:00:10]} 1-0